Cogmind - Beta 16 @@@ ROGUE MODE // 2025.11.16 @ 08:25:24 Player: Mozco Result: Self-destructed Performance ------------- Evolutions (1) 500 Regions Visited (3) 600 Robots Destroyed (13) 65 Value Destroyed (393) 393 Prototype IDs (0) 0 Alien Tech Used (0) 0 Bonus (200) 200 TOTAL SCORE: 1758 Bonus ------- Pacifist 200 Cogmind --------- Core Integrity 218/400 Matter 300/300 Energy 112/250 System Corruption 0% Temperature Cool (0) Movement Walking (190) Ox1 Location -9/Materials Parts ------- > --- POWER (1) -------- Ion Engine > --- PROPULSION (2) --- Aluminum Leg > --- UTILITY (4) ------ Medium Storage Unit > --- WEAPON (2) ------- Maul > --- INVENTORY (10) --- Light Ion Engine Light Treads Light Treads Aluminum Leg Aluminum Leg Aluminum Leg Small Storage Unit Large Storage Unit Peak State ------------ > --- POWER ------------ Light Ion Engine > --- PROPULSION ------- Aluminum Leg Aluminum Leg > --- UTILITY ---------- Small Storage Unit Weight Redist. System Light Armor Plating Shield Generator > --- WEAPON ----------- Maul > --- INVENTORY -------- Ion Engine Light Treads Light Treads Aluminum Leg Large Storage Unit [Rating: 11] Favorites ----------- Power Light Ion Engine Engine Light Ion Engine Propulsion Aluminum Leg Leg Aluminum Leg Utility Weight Redist. System Device Weight Redist. System Storage Medium Storage Unit Protection Light Armor Plating Weapon Maul Impact Weapon Maul Build | -11 -10 -10 -9 ------- Run | Yrd Mat Min Mat Slots Evolved 2 | . . . 2 Power . | . . . . Propulsion . | . . . . Utility 2 | . . . 2 Weapon . | . . . . Parts Attached 11 | . . . 11 Power 3 | . . . 3 Engine 3 | . . . 3 Core . | . . . . Reactor . | . . . . Propulsion 2 | . . . 2 Treads . | . . . . Leg 2 | . . . 2 Wheel . | . . . . Hover . | . . . . Flight . | . . . . Utility 5 | . . . 5 Device 2 | . . . 2 Storage 2 | . . . 2 Processor . | . . . . Hackware . | . . . . Protection 1 | . . . 1 Artifact . | . . . . Weapon 1 | . . . 1 Energy Gun . | . . . . Energy Cannon . | . . . . Ballistic Gun . | . . . . Ballistic Cannon . | . . . . Launcher . | . . . . Special Weapon . | . . . . Impact Weapon 1 | . . . 1 Slashing Weapon . | . . . . Piercing Weapon . | . . . . Special Melee Weapon . | . . . . Unidentified Prototypes . | . . . . Parts Lost 5 | . . . 5 Power 1 | . . . 1 Propulsion 1 | . . . 1 Utility 3 | . . . 3 Weapon . | . . . . Highest Loss Streak 4 | . . . 4 To Critical Strikes 1 | . . . 1 Average Backups 5 | 3 5 5 6 Power 1 | 1 2 2 1 Propulsion 2 | 1 2 2 3 Utility 1 | . 1 1 1 Weapon . | . . . . Tool/Special . | . . . . Unused Backups 5 | . . . 5 Power . | . . . . Propulsion 4 | . . . 4 Utility 1 | . . . 1 Weapon . | . . . . Tool/Special . | . . . . Average Slot Usage (%) 48 | . . . 68 Engine 7 | . . . 9 Leg 12 | . . . 17 Device 9 | . . . 13 Storage 7 | . . . 10 Protection 4 | . . . 6 Impact Weapon 6 | . . . 9 Peak Build Rating 11 | . . . 11 Average Rating 6 | . . . 8 On Entrance . | . . . . Avg Prop Armor Cover (%) . | . . . . Naked Turns 199 | . 38 156 5 Heaviest Build 23 | . . . 23 Greatest Support 26 | 3 3 3 26 Greatest Overweight (x) 1 | . . . 1 Average Overweight (x) . | . . . . Largest Inventory Capacity 10 | 5 5 5 10 Average Capacity 7 | 5 5 5 9 Most Carried 9 | 5 5 5 9 Average Carried 5 | 3 5 5 6 Final Capacity 10 | 5 5 5 10 Final Carried 8 | 5 5 5 8 Class Distribution -------------------- 100% | Mutant Dominant Class ---------------- Mutant | -10/Materials Mutant | -10/Mines Mutant | -9/Materials Resources | -11 -10 -10 -9 ----------- Run | Yrd Mat Min Mat Matter Collected 360 | 200 . . 160 Remotely . | . . . . Salvage Created 498 | . . . 498 Parts 20 | . . . 20 Haulers Intercepted 1 | . . . 1 Recyclers Shooed . | . . . . Parts Field Recycled . | . . . . Retrieved Matter . | . . . . Parts Self-Destructed . | . . . . Prevented . | . . . . Parts Restored . | . . . . Kills | -11 -10 -10 -9 ------- Run | Yrd Mat Min Mat Combat Hostiles Destroyed 11 | . . . 11 Melee 5 | . . . 5 Classes Destroyed 5 | . . . 5 Hauler 1 | . . . 1 Recycler 1 | . . . 1 Swarmer 1 | . . . 1 Grunt 8 | . . . 8 Sentry 2 | . . . 2 Best Kill Streak 6 | . . . 6 Combat Bots Only 5 | . . . 5 Max Kills in Single Turn 1 | . . . 1 Gunslinging . | . . . . Exploded . | . . . . Melee 1 | . . . 1 Uniques/NPCs Destroyed . | . . . . Combat | -11 -10 -10 -9 -------- Run | Yrd Mat Min Mat Hostile Shots Fired 102 | . . . 102 Missed 22 | . . . 22 Hits 80 | . . . 80 Projectile 80 | . . . 80 Critical Strikes 2 | . . . 2 Damage Taken 861 | . 22 3 836 Core 207 | . 22 3 182 Absorbed by Shields 32 | . . . 32 Regen/Repaired (Parts) 216 | . . . 216 Core Remaining (%) 95 | 100 . 90 . Volleys Fired . | . . . . Largest . | . . . . Hottest . | . . . . Shots Fired . | . . . . Gun . | . . . . Cannon . | . . . . Launcher . | . . . . Special . | . . . . Kinetic . | . . . . Thermal . | . . . . Explosive . | . . . . Electromagnetic . | . . . . Robot Hit Streak . | . . . . Robot Miss Streak . | . . . . Penetration Max . | . . . . Secondary Targets . | . . . . Shots Hit Robots 24 | . . . 24 Core Hits 4 | . . . 4 Critical Kills 1 | . . . 1 Critical Parts Destroyed 6 | . . . 6 Critical Strikes 7 | . . . 7 Smash 7 | . . . 7 Melee Attacks 31 | . . . 31 Impact 31 | . . . 31 Slashing . | . . . . Piercing . | . . . . Sneak Attacks 2 | . . . 2 Combat Hostiles . | . . . . Follow-up Attacks . | . . . . Damage Inflicted 960 | . 12 7 941 Guns . | . . . . Cannons . | . . . . Explosions . | . . . . Melee 941 | . . . 941 Ramming 19 | . 12 7 . Kinetic . | . . . . Thermal . | . . . . Explosive . | . . . . Electromagnetic . | . . . . Impact 941 | . . . 941 Slashing . | . . . . Piercing . | . . . . Highest Corruption . | . . . . Average Corruption . | . . . . Corruption Purged . | . . . . Corruption Blocked . | . . . . Overload Shots . | . . . . Overflow Damage 319 | . . . 319 Projectiles . | . . . . Explosions . | . . . . Melee 319 | . . . 319 Knockbacks 5 | . . . 5 Impact 5 | . . . 5 Kinetic . | . . . . Secondary . | . . . . Self-Inflicted Damage 15 | . 12 3 . Shots . | . . . . Rammed 1 | . . 1 . Targets Rammed 1 | . . 1 . Kicked . | . . . . Crushed . | . . . . Highest Temperature . | . . . . Average Temperature . | . . . . Received Heat Transfer 237 | . . . 237 Siege Activations . | . . . . Martial Activations . | . . . . Shielding Activations . | . . . . Robots Disrupted . | . . . . Combat Hostiles . | . . . . Robots Corrupted 6 | . . . 6 Combat Hostiles 6 | . . . 6 Parts Fried 3 | . . . 3 Impact Corruptions 10 | . . . 10 Robots Melted . | . . . . Combat Hostiles . | . . . . Parts Melted . | . . . . Heat Transferred . | . . . . Parts Sabotaged . | . . . . Parts Stolen . | . . . . Parts Stripped . | . . . . Power Chain Reactions . | . . . . Alert | -11 -10 -10 -9 ------- Run | Yrd Mat Min Mat Maximum Alert Level . | . . . . Low Security (%) 100 | 100 100 100 100 Level 1 . | . . . . Level 2 . | . . . . Level 3 . | . . . . Level 4 . | . . . . Level 5 . | . . . . High Security . | . . . . Max Security . | . . . . Peak Influence 141 | . . . 141 Initial . | . . . . Average 18 | . . . 25 Influence Increases 332 | . . . 332 Destroy 0b10 Robot/C 220 | . . . 220 Destroy 0b10 Robot/NC 10 | . . . 10 Destroy Leader 62 | . . . 62 Successful Hack 10 | . . . 10 Select Force Hacks 30 | . . . 30 Influence Decreases 239 | . . . 239 Time Decay 189 | . . . 189 Lost Part 50 | . . . 50 Squads Dispatched 3 | . 1 . 2 Investigation 1 | . . . 1 Extermination . | . . . . Reinforcement 2 | . 1 . 1 Assault . | . . . . Garrison . | . . . . Intercept . | . . . . Searches Triggered . | . . . . Construction Impeded . | . . . . Haulers Reinforced . | . . . . Active Scanning Responses . | . . . . Cargo Convoy Interrupts . | . . . . Stealth | -11 -10 -10 -9 --------- Run | Yrd Mat Min Mat Distress Signals 1 | . . . 1 Communications Jammed . | . . . . Distress Signals . | . . . . Times Spotted 23 | . 1 . 22 Peak Tracking Total 9 | . 1 . 9 Tactical Retreats . | . . . . Traps | -11 -10 -10 -9 ------- Run | Yrd Mat Min Mat Traps Triggered 1 | . . . 1 Indirectly . | . . . . Trap Hack Attempts . | . . . . Triggered . | . . . . Disarmed . | . . . . Reprogrammed . | . . . . Reused . | . . . . Traps Extracted . | . . . . Installed . | . . . . Triggered . | . . . . Machines | -11 -10 -10 -9 ---------- Run | Yrd Mat Min Mat Machines Disabled . | . . . . Max in Single Turn . | . . . . Machines Repaired . | . . . . Machines Dismantled . | . . . . Machines Sabotaged . | . . . . Overloaded Fab Kills . | . . . . Hacking | -11 -10 -10 -9 --------- Run | Yrd Mat Min Mat Machines Accessed 3 | . 1 . 2 Terminals 1 | . 1 . . Fabricators . | . . . . Repair Stations 1 | . . . 1 Recycling Units 1 | . . . 1 Scanalyzers . | . . . . Garrison Access . | . . . . Total Hacks 11 | . 1 . 10 Successful 9 | . . . 9 Failed 2 | . 1 . 1 Catastrophic 1 | . 1 . . Database Lockouts . | . . . . Manual 2 | . 1 . 1 Terminals 1 | . 1 . . Fabricators . | . . . . Repair Stations 9 | . . . 9 Recycling Units 1 | . . . 1 Scanalyzers . | . . . . Garrison Access . | . . . . Terminal Hacks . | . . . . Fabricator Hacks . | . . . . Repair Station Hacks 8 | . . . 8 Scan Component 4 | . . . 4 Repair 4 | . . . 4 Recycling Unit Hacks . | . . . . Scanalyzer . | . . . . Garrison Access Hacks . | . . . . Unauthorized Hacks 1 | . . . 1 Terminals . | . . . . Fabricators . | . . . . Repair Stations . | . . . . Recycling Units 1 | . . . 1 Tunnel 1 | . . . 1 Scanalyzers . | . . . . Garrison Access . | . . . . Data Cores Recovered . | . . . . Used . | . . . . Hacking Detections 2 | . 1 . 1 Full Trace Events . | . . . . Feedback Events . | . . . . Feedback Blocked . | . . . . Robot Schematics Acquired . | . . . . Robots Built . | . . . . Authchips . | . . . . Time . | . . . . Total Robot Build Rating . | . . . . Part Schematics Acquired . | . . . . Parts Built . | . . . . Authchips . | . . . . Time . | . . . . Total Part Build Rating . | . . . . Part Studies Acquired . | . . . . Parts Repaired 4 | . . . 4 Time 110 | . . . 110 Parts Recycled . | . . . . Recycled Matter . | . . . . Retrieved Matter . | . . . . Retrieved Components . | . . . . Parts Scanalyzed . | . . . . Part Schematics Acquired . | . . . . Parts Damaged . | . . . . Bothacking | -11 -10 -10 -9 ------------ Run | Yrd Mat Min Mat Used RIF Installer . | . . . . Robots Hacked . | . . . . Non-combat . | . . . . Combat . | . . . . Robot Hacks Applied . | . . . . Relay Couplers Released . | . . . . Fabnet Peak Effective % . | . . . . Robots Rewired . | . . . . Allies Hacked . | . . . . Hacks Repelled . | . . . . Allies | -11 -10 -10 -9 -------- Run | Yrd Mat Min Mat Total Allies . | . . . . Largest Group . | . . . . Highest-Rated Group . | . . . . Highest-Rated Ally . | . . . . Total Orders . | . . . . Ally Attacks . | . . . . Total Damage . | . . . . Kills . | . . . . Allies Corrupted . | . . . . Allies Melted . | . . . . Intel | -11 -10 -10 -9 ------- Run | Yrd Mat Min Mat Active Infowar (turns) . | . . . . Robot Analysis Total . | . . . . Derelict Logs Recovered 2 | . . 2 . Drone Launches . | . . . . Drone Recoveries . | . . . . Exploration | -11 -10 -10 -9 ------------- Run | Yrd Mat Min Mat Turns Passed 746 | 22 38 156 530 Spaces Moved 728 | 34 74 310 310 Core 529 | 34 74 310 111 Treads . | . . . . Legs 199 | . . . 199 Wheels . | . . . . Hover . | . . . . Flight . | . . . . Fastest Speed 50 | 50 50 50 50 Average Speed 69 | 50 50 50 96 Slowest Speed 120 | 50 50 50 120 Overloaded Moves . | . . . . Propulsion Burnouts . | . . . . Robots Hopped . | . . . . Potential Cave-ins . | . . . . Cave-ins Triggered . | . . . . Exploration Rate (%) 29 | 3 17 75 23 Regions Visited 3 Branch Regions 1 Pre-discovered Areas 1 | . . . 1 Known Exits Taken . | . . . . Unknown Exits Taken 3 | 1 1 1 . Scrap Searched 1 | . . 1 . Spaces Dug . | . . . . Terrain Destroyed . | . . . . Melee . | . . . . Projectile . | . . . . AOE . | . . . . Terrain Rammed 1 | . 1 . . Walls Destroyed . | . . . . Machines Disabled . | . . . . Actions | -11 -10 -10 -9 --------- Run | Yrd Mat Min Mat Total 897 | 38 74 310 475 Wait 110 | . . . 110 Move 725 | 33 73 309 310 Hop . | . . . . Pick Up 11 | 5 . . 6 Fast Attach 8 | . . . 8 Attach 6 | . . . 6 Detach 1 | . . . 1 Swap 3 | . . . 3 Drop . | . . . . Fire . | . . . . Melee 31 | . . . 31 Ram 2 | . 1 1 . Kick . | . . . . Crush . | . . . . Escape Stasis . | . . . . Rewire . | . . . . Trap . | . . . . Miscellaneous . | . . . . Route ------- -11/Scrapyard -10/Materials -10/Mines -9/Materials History --------- Turn | Location | Event 10 | -11/Scrapyard | Discovered new exit (range 15) 23 | -11/Scrapyard | Entered Materials 54 | -10/Materials | Discovered new exit (range 15) 61 | -10/Materials | Entered Mines 95 | -10/Mines | Learned Materials emergency access door positions 102 | -10/Mines | Found a hidden stash of uninstalled traps 213 | -10/Mines | Discovered new exit (range 8) 217 | -10/Mines | Entered Materials 217 | -9/Materials | Evolved 2 slots: Utility x2 317 | -9/Materials | Build established: Mutant 471 | -9/Materials | Repaired Lgt. Armor Plating? 587 | -9/Materials | Repaired Imp. Ion Engine 615 | -9/Materials | Repaired Aluminum Leg 642 | -9/Materials | Repaired Aluminum Leg 747 | -9/Materials | Self-destructed Last Messages --------------- 00728_ Y-45 Defender system terminally corrupted. 00732_ K-01 Serf cleans the Nuclear Reactor. 00734_ Destroyed Flight Unit. 00734_ S-10 Pest system corrupted by crushing effect. 00735_ S-10 Pest system terminally corrupted. 00735_ Lgt. Ion Engine fried. 00735_ Critical hit (Destroy). 00735_ K-01 Serf cleans the Nuclear Reactor. 00738_ R-06 Scavenger collects Sml. Storage Unit. 00739_ Imp. Ion Engine destroyed. 00739_ K-01 Serf collects debris. 00739_ S-10 Pest destroyed. 00740_ R-06 Scavenger collects Lgt. Assault Rifle. 00743_ Lgt. Armor Plating destroyed. 00743_ K-01 Serf collects debris. 00744_ R-06 Scavenger collects Corrupted Lgt. Treads. 00746_ Critical hit (Destroy). 00746_ Aluminum Leg destroyed. 00747_ Weight Redist. System destroyed. 00747_ K-01 Serf cleans the Nuclear Reactor. Map ----- +----------------------------------------------------+ | | | | | | | | | | | | | ?????????????????????????????????????????????????? | | ?????????????????????????????????????????????????? | | ?????????????????????????????????????????????????? | | ?????????????????????????????????????????????????? | | ?????????????????????????????????????????????????? | | ?????????????????????#+??????????????????????????? | | ????????????????????? ??????????????????????????? | | ????????????????????? ??????????????????????????? | | ????????????????????? ??????????????????????????? | | ?????????????????????# ??????????????????????????? | | ?????????????????????# ####??????????????????????? | | ?????????????????????# ??????????????????????? | | ?????????????????????# ???????????????????????? | | ?????????????????????# ???????????????????????? | | ????????????????????## ????????????????????????? | | ????????????????????? % ????????????????????????? | | ??????????????????????#+#####????????????????????? | | ??????????????????????# % ss#????????????????????? | | ??????????????????????#rs s#????????????????????? | | ??????????????????????# *@sg#????????????????????? | | ??????????########????#%"""%#????????????????????? | | ??????????# #????#Y"""k#????????????????????? | | ??????????#""" #????#=""" /k???????????????????? | | ??????????#"R #????# # ?????????????????? | | ?##########""" #????#= # #????????????????? | | ?# %+% #????# ""#? #????????????????? | | ?# # #????# Y"#? #????????????????? | | ?# ####+######## ""#?? #????????????????? | | ?# + #???#????????????????? | | ?# ###########+##????????????????????? | | ## #?????????????????????????????????? | | ] ^ #?????????????????????????????????? | | = #?????????????????????????????????? | | ^ ^ "" """ #??????????+??????????????????????? | | [ "" """ #?????????????????????????????????? | | %[ """ """ #?????????????????????????????????? | | [[ #?????????????????????????????????? | | + "???????????????????????????? | | ################### ??????????????????????????? | | #????????????????????????????????????????????????? | | #????????????????????????????????????????????????? | | #???????????###??????????????????????????????????? | | #########! #??????????????????????????????????? | | #??????????????????????????????????? | +----------------------------------------------------+ Best States ------------- Heat Dissipation 28 Energy Generation 12 Energy Capacity 265 Matter Stores 300 Matter Capacity 300 Sight Range 16 Terrain Scan Density 10 Additional Mass Support 6 Armor Coverage 150 Evasion (%) 55 Item Schematics ----------------- None Robot Schematics ------------------ None Fabricated ------------ Nothing Repaired ---------- Lgt. Armor Plating | 53% | -9/Materials Imp. Ion Engine | 38% | -9/Materials Aluminum Leg | 21% | -9/Materials Aluminum Leg | 33% | -9/Materials Studied --------- None Alien Tech Used ----------------- None Achievements -------------- None Challenges ------------ None Game ------ Seed NavigationExperimentalStick Manual? 0 Play Time 00:11:05 Cumulative 273.6 hours Start 2025.11.16 @ 08:01:38 End 2025.11.16 @ 08:25:24 Sessions 1 Manual Loads 0 Difficulty Rogue Special Mode None Game No. 280 Rogue 276 Adventurer 3 Explorer 1 Win Type - Total 1 Types 1/0/0/0/0/0/0/0/0/0 Lore% 78 Gallery% 76 Achievement% 60 Wizard Run 0 Options --------- Layout 0 ASCII 0 Keyboard 0 Movement Numpad Keybinds 0 Fullscreen 2 Font 18/SmallcapsGlow Map View 76x50 Zoom Use 0% Tactical HUD 1 Map Filters NONE Filters NONE Steam 1 RUN: d9c7bea2-d6af-4640-aaaf-4ec757063b6c